[Event "Early-Titled-Tuesday-Blitz-March-12-2024"]
[Site "Chess.com"]
[Date "2024.03.12"]
[Round "6"]
[White "VladimirKramnik"]
[Black "Flawless_Fighter"]
[Result "0-1"]
[WhiteElo "2987"]
[BlackElo "2852"]
[TimeControl "180+1"]
[EndTime "9:07:02 PDT"]
[Termination "Flawless_Fighter won on time"]

1. e4 {[%clk 0:03:00.9]} 1... c5 {[%clk 0:02:39.3]} 2. Nf3 {[%clk 0:03:00.5]}
2... d6 {[%clk 0:02:38.1]} 3. d4 {[%clk 0:02:59.3]} 3... cxd4 {[%clk 0:02:39]}
4. Nxd4 {[%clk 0:02:59.2]} 4... Nf6 {[%clk 0:02:39.7]} 5. Nc3 {[%clk 0:02:59.4]}
5... a6 {[%clk 0:02:40.1]} 6. g3 {[%clk 0:02:57]} 6... e5 {[%clk 0:02:39.8]} 7.
Nf3 {[%clk 0:02:56]} 7... Be7 {[%clk 0:02:37.7]} 8. Nh4 {[%clk 0:02:55.5]} 8...
g6 {[%clk 0:02:28.1]} 9. Ng2 {[%clk 0:02:53.7]} 9... Be6 {[%clk 0:02:27.3]} 10.
Ne3 {[%clk 0:02:49.1]} 10... O-O {[%clk 0:02:27.1]} 11. Bg2 {[%clk 0:02:45]}
11... Nbd7 {[%clk 0:02:26.6]} 12. a4 {[%clk 0:02:31.1]} 12... Rc8 {[%clk
0:02:26.2]} 13. O-O {[%clk 0:02:28.1]} 13... Re8 {[%clk 0:02:19.1]} 14. Re1
{[%clk 0:02:18.7]} 14... Bf8 {[%clk 0:02:08.5]} 15. h3 {[%clk 0:02:16.5]} 15...
h5 {[%clk 0:02:06.6]} 16. Bd2 {[%clk 0:02:14.6]} 16... Bh6 {[%clk 0:02:04.2]}
17. a5 {[%clk 0:02:00]} 17... Kh7 {[%clk 0:02:03.5]} 18. Re2 {[%clk 0:01:38.5]}
18... Nc5 {[%clk 0:01:51.2]} 19. b4 {[%clk 0:01:33.2]} 19... Ncd7 {[%clk
0:01:49.5]} 20. Rc1 {[%clk 0:01:29.8]} 20... b6 {[%clk 0:01:46]} 21. axb6 {[%clk
0:01:18.5]} 21... Nxb6 {[%clk 0:01:44.8]} 22. Ncd5 {[%clk 0:01:12.9]} 22...
Nfxd5 {[%clk 0:01:27.9]} 23. exd5 {[%clk 0:01:12.5]} 23... Bd7 {[%clk 0:01:25]}
24. Re1 {[%clk 0:01:03.8]} 24... Ba4 {[%clk 0:01:22.7]} 25. Qf3 {[%clk
0:00:59.9]} 25... Qe7 {[%clk 0:01:13.2]} 26. Nf5 {[%clk 0:00:40.7]} 26... gxf5
{[%clk 0:01:06.9]} 27. Qxf5+ {[%clk 0:00:37.3]} 27... Kg7 {[%clk 0:01:06.9]} 28.
Bxh6+ {[%clk 0:00:31.5]} 28... Kxh6 {[%clk 0:01:05.6]} 29. Be4 {[%clk
0:00:31.2]} 29... Rh8 {[%clk 0:01:02.6]} 30. Ra1 {[%clk 0:00:24.7]} 30... Bd7
{[%clk 0:01:02.3]} 31. Qf3 {[%clk 0:00:24.7]} 31... Rcf8 {[%clk 0:00:55.4]} 32.
Qe3+ {[%clk 0:00:23.8]} 32... Qg5 {[%clk 0:00:53.5]} 33. Qxb6 {[%clk 0:00:23.8]}
33... Bxh3 {[%clk 0:00:50.3]} 34. Qxd6+ {[%clk 0:00:22]} 34... Kg7 {[%clk
0:00:50.2]} 35. Bg2 {[%clk 0:00:17.6]} 35... Bxg2 {[%clk 0:00:43.7]} 36. Kxg2
{[%clk 0:00:13.5]} 36... f6 {[%clk 0:00:43.1]} 37. Rxa6 {[%clk 0:00:12.7]} 37...
Rf7 {[%clk 0:00:43]} 38. Rh1 {[%clk 0:00:08.5]} 38... h4 {[%clk 0:00:43.2]} 39.
Rh3 {[%clk 0:00:08.4]} 39... Qf5 {[%clk 0:00:32.5]} 40. Ra1 {[%clk 0:00:06]}
40... Qe4+ {[%clk 0:00:30.3]} 41. Kg1 {[%clk 0:00:06.2]} 41... Rh6 {[%clk
0:00:26.7]} 42. Qe6 {[%clk 0:00:05]} 42... Rg6 {[%clk 0:00:26.9]} 43. Rf1 {[%clk
0:00:02.5]} 43... Qf3 {[%clk 0:00:23.4]} 44. Rxh4 {[%clk 0:00:02.4]} 44... Rxg3+
{[%clk 0:00:23]} 45. fxg3 {[%clk 0:00:02.6]} 45... Qxg3+ {[%clk 0:00:23.9]} 46.
Kh1 {[%clk 0:00:02.9]} 46... Qxh4+ {[%clk 0:00:24.7]} 47. Kg2 {[%clk 0:00:03.6]}
47... Qg5+ {[%clk 0:00:22.5]} 48. Kf3 {[%clk 0:00:03.6]} 48... Qf4+ {[%clk
0:00:22.1]} 49. Ke2 {[%clk 0:00:03.8]} 49... Qe4+ {[%clk 0:00:19.9]} 50. Kd2
{[%clk 0:00:02.8]} 50... Qxb4+ {[%clk 0:00:20]} 51. c3 {[%clk 0:00:02.5]} 51...
Qb2+ {[%clk 0:00:18.6]} 52. Kd3 {[%clk 0:00:02.8]} 52... Qb5+ {[%clk 0:00:19.3]}
53. c4 {[%clk 0:00:02.2]} 53... Qb3+ {[%clk 0:00:19.4]} 54. Kd2 {[%clk
0:00:02.6]} 54... Qb2+ {[%clk 0:00:18.6]} 55. Ke3 {[%clk 0:00:02.7]} 55... Qd4+
{[%clk 0:00:18.7]} 56. Kf3 {[%clk 0:00:03]} 56... Qf4+ {[%clk 0:00:18.2]} 57.
Kg2 {[%clk 0:00:03]} 57... Qe4+ {[%clk 0:00:12.7]} 58. Kh2 {[%clk 0:00:02.7]}
58... Qe2+ {[%clk 0:00:12.4]} 59. Kg1 {[%clk 0:00:02.9]} 59... Qe3+ {[%clk
0:00:09.4]} 60. Rf2 {[%clk 0:00:02.9]} 60... Qe1+ {[%clk 0:00:09.2]} 61. Kg2
{[%clk 0:00:02.8]} 61... Qe4+ {[%clk 0:00:09.8]} 62. Kg3 {[%clk 0:00:03.1]}
62... Qxc4 {[%clk 0:00:09.1]} 63. Qf5 {[%clk 0:00:02.4]} 63... Qc3+ {[%clk
0:00:09.1]} 64. Rf3 {[%clk 0:00:01.7]} 64... Qd4 {[%clk 0:00:09]} 65. Kg2 {[%clk
0:00:02.2]} 65... Qd2+ {[%clk 0:00:08.9]} 66. Kg3 {[%clk 0:00:01.4]} 66... Qxd5
{[%clk 0:00:09.8]} 0-1

[Event "Early-Titled-Tuesday-Blitz-March-12-2024"]
[Site "Chess.com"]
[Date "2024.03.12"]
[Round "6"]
[White "zajka-molotok"]
[Black "Airquake"]
[Result "1-0"]
[WhiteElo "2531"]
[BlackElo "2643"]
[TimeControl "180+1"]
[EndTime "9:07:05 PDT"]
[Termination "zajka-molotok won on time"]

1. e4 {[%clk 0:03:00.9]} 1... c5 {[%clk 0:02:51.9]} 2. Nf3 {[%clk 0:03:00.8]}
2... d6 {[%clk 0:02:52.8]} 3. Bb5+ {[%clk 0:02:59.6]} 3... Bd7 {[%clk
0:02:52.8]} 4. Bxd7+ {[%clk 0:02:58.7]} 4... Qxd7 {[%clk 0:02:53.7]} 5. c4
{[%clk 0:02:58.6]} 5... g5 {[%clk 0:02:51.8]} 6. Nxg5 {[%clk 0:02:54.7]} 6...
Bg7 {[%clk 0:02:39.9]} 7. Qh5 {[%clk 0:02:50.8]} 7... e6 {[%clk 0:02:36.6]} 8.
O-O {[%clk 0:02:41.7]} 8... Nc6 {[%clk 0:02:34.6]} 9. d3 {[%clk 0:02:40.6]} 9...
Nd4 {[%clk 0:02:30.9]} 10. Nc3 {[%clk 0:02:38.1]} 10... Nf6 {[%clk 0:02:26.7]}
11. Qh4 {[%clk 0:02:30.4]} 11... Rg8 {[%clk 0:02:19.4]} 12. Be3 {[%clk 0:02:18]}
12... h6 {[%clk 0:02:11.4]} 13. Nh3 {[%clk 0:02:12.9]} 13... Nc6 {[%clk
0:01:38.7]} 14. Nf4 {[%clk 0:02:01.9]} 14... O-O-O {[%clk 0:01:34.7]} 15. Rab1
{[%clk 0:01:46.4]} 15... Ne5 {[%clk 0:01:31.9]} 16. Rfd1 {[%clk 0:01:40.6]}
16... Nfg4 {[%clk 0:01:19.5]} 17. Qh3 {[%clk 0:01:36.2]} 17... Bf6 {[%clk
0:01:12.1]} 18. b4 {[%clk 0:01:20.3]} 18... b6 {[%clk 0:01:03]} 19. a4 {[%clk
0:01:10.6]} 19... Nc6 {[%clk 0:00:14.5]} 20. Na2 {[%clk 0:01:08.8]} 20... Be5
{[%clk 0:00:07.1]} 21. a5 {[%clk 0:01:05.9]} 21... cxb4 {[%clk 0:00:06.5]} 22.
axb6 {[%clk 0:01:04.8]} 22... Nxe3 {[%clk 0:00:07]} 23. fxe3 {[%clk 0:01:02.6]}
23... axb6 {[%clk 0:00:06.5]} 24. Nxb4 {[%clk 0:01:02.2]} 24... Kc7 {[%clk
0:00:04]} 25. Nxc6 {[%clk 0:00:59.3]} 25... Qxc6 {[%clk 0:00:04.9]} 26. Qh5
{[%clk 0:00:56.2]} 26... Rg7 {[%clk 0:00:03.5]} 27. Rd2 {[%clk 0:00:47.4]} 27...
Rdg8 {[%clk 0:00:03.9]} 28. Rf2 {[%clk 0:00:45.2]} 28... Bxf4 {[%clk 0:00:03.9]}
29. exf4 {[%clk 0:00:44.6]} 29... Qc5 {[%clk 0:00:04.5]} 30. Qxc5+ {[%clk
0:00:41.4]} 30... dxc5 {[%clk 0:00:05.1]} 31. g3 {[%clk 0:00:39.5]} 31... Ra8
{[%clk 0:00:05.4]} 32. Rfb2 {[%clk 0:00:38.8]} 32... Ra6 {[%clk 0:00:05.3]} 33.
Kg2 {[%clk 0:00:38.2]} 33... Rg8 {[%clk 0:00:05.7]} 34. Kf3 {[%clk 0:00:38.2]}
34... Rd8 {[%clk 0:00:05.7]} 35. Ke3 {[%clk 0:00:38.5]} 35... Ra3 {[%clk
0:00:04.9]} 36. Rb3 {[%clk 0:00:38.9]} 36... Ra6 {[%clk 0:00:05.4]} 37. R1b2
{[%clk 0:00:38.9]} 37... Kc6 {[%clk 0:00:05.8]} 38. h4 {[%clk 0:00:38.8]} 38...
h5 {[%clk 0:00:06.4]} 39. Kf3 {[%clk 0:00:37.1]} 39... Rg8 {[%clk 0:00:04.1]}
40. e5 {[%clk 0:00:36.2]} 40... Kc7 {[%clk 0:00:03.5]} 41. Rd2 {[%clk
0:00:33.9]} 41... Ra4 {[%clk 0:00:03.3]} 42. Rdb2 {[%clk 0:00:33]} 42... Ra6
{[%clk 0:00:03.6]} 43. Rb1 {[%clk 0:00:30.7]} 43... Kc6 {[%clk 0:00:04.1]} 44.
Rg1 {[%clk 0:00:30.4]} 44... Rg4 {[%clk 0:00:04.1]} 45. Rg2 {[%clk 0:00:29.8]}
45... Ra1 {[%clk 0:00:03.6]} 46. Rgb2 {[%clk 0:00:29.7]} 46... Ra6 {[%clk
0:00:03.8]} 47. d4 {[%clk 0:00:28]} 47... cxd4 {[%clk 0:00:04.7]} 48. Ke4 {[%clk
0:00:27.9]} 48... Kc5 {[%clk 0:00:04.2]} 49. Rb5+ {[%clk 0:00:27.2]} 49... Kxc4
{[%clk 0:00:04.7]} 50. R2b4+ {[%clk 0:00:26.8]} 50... Kc3 {[%clk 0:00:04.8]} 51.
Rxd4 {[%clk 0:00:21.6]} 51... Rxg3 {[%clk 0:00:05]} 52. Rb1 {[%clk 0:00:17.8]}
52... Kc2 {[%clk 0:00:04.9]} 53. Rbb4 {[%clk 0:00:16.9]} 53... Raa3 {[%clk
0:00:04.6]} 54. Rdc4+ {[%clk 0:00:15.3]} 54... Kd2 {[%clk 0:00:04.7]} 55. Rb2+
{[%clk 0:00:15.1]} 55... Kd1 {[%clk 0:00:04.5]} 56. Rd4+ {[%clk 0:00:14.8]}
56... Ke1 {[%clk 0:00:04.3]} 57. Rdd2 {[%clk 0:00:13.8]} 57... Ra4+ {[%clk
0:00:04]} 58. Rd4 {[%clk 0:00:13]} 58... Rxd4+ {[%clk 0:00:03.7]} 59. Kxd4
{[%clk 0:00:13.9]} 59... Rg4 {[%clk 0:00:04.3]} 60. Ke4 {[%clk 0:00:14.1]} 60...
Rxh4 {[%clk 0:00:03.8]} 61. Rxb6 {[%clk 0:00:14.1]} 61... Rg4 {[%clk 0:00:04.5]}
62. Rb7 {[%clk 0:00:14.1]} 62... Rg7 {[%clk 0:00:05.2]} 63. f5 {[%clk
0:00:13.6]} 63... Rg4+ {[%clk 0:00:05.2]} 64. Kf3 {[%clk 0:00:14]} 64... exf5
{[%clk 0:00:05.1]} 65. Rxf7 {[%clk 0:00:14.1]} 65... Kd2 {[%clk 0:00:03.8]} 66.
Rxf5 {[%clk 0:00:14.2]} 66... Kd3 {[%clk 0:00:04.3]} 67. Rxh5 {[%clk 0:00:13.5]}
67... Re4 {[%clk 0:00:04.9]} 68. Rf5 {[%clk 0:00:11.8]} 68... Kd4 {[%clk
0:00:05.3]} 69. Rf4 {[%clk 0:00:11.7]} 69... Kxe5 {[%clk 0:00:01.6]} 70. Rxe4+
{[%clk 0:00:11.8]} 1-0

[Event "Early-Titled-Tuesday-Blitz-March-12-2024"]
[Site "Chess.com"]
[Date "2024.03.12"]
[Round "6"]
[White "mishanick"]
[Black "LiamPutnam2008"]
[Result "1-0"]
[WhiteElo "3100"]
[BlackElo "2896"]
[TimeControl "180+1"]
[EndTime "9:07:09 PDT"]
[Termination "mishanick won by resignation"]

1. d4 {[%clk 0:03:00.9]} 1... Nf6 {[%clk 0:02:50.4]} 2. c4 {[%clk 0:03:01]} 2...
g6 {[%clk 0:02:46.4]} 3. Nc3 {[%clk 0:03:01]} 3... d5 {[%clk 0:02:45.7]} 4. Bf4
{[%clk 0:02:58.7]} 4... Bg7 {[%clk 0:02:41]} 5. e3 {[%clk 0:02:59.1]} 5... O-O
{[%clk 0:02:39.8]} 6. cxd5 {[%clk 0:02:59]} 6... Nxd5 {[%clk 0:02:37.3]} 7. Nxd5
{[%clk 0:02:59.9]} 7... Qxd5 {[%clk 0:02:38]} 8. Bxc7 {[%clk 0:03:00.2]} 8...
Nc6 {[%clk 0:02:35.9]} 9. Nf3 {[%clk 0:02:55.4]} 9... Bf5 {[%clk 0:02:03.8]} 10.
Be2 {[%clk 0:02:54.9]} 10... Rac8 {[%clk 0:02:03.5]} 11. Bg3 {[%clk 0:02:55.1]}
11... Nb4 {[%clk 0:01:58.5]} 12. O-O {[%clk 0:02:55.3]} 12... Nc2 {[%clk
0:01:55.4]} 13. Rc1 {[%clk 0:02:52.7]} 13... Qxa2 {[%clk 0:01:55.8]} 14. Qd2
{[%clk 0:02:07.4]} 14... Qxb2 {[%clk 0:01:43.8]} 15. Rb1 {[%clk 0:02:04.5]}
15... Qa3 {[%clk 0:01:35.5]} 16. Rxb7 {[%clk 0:02:03.5]} 16... Be4 {[%clk
0:01:35.2]} 17. Rbb1 {[%clk 0:01:46.8]} 17... Rfd8 {[%clk 0:01:22.2]} 18. Ng5
{[%clk 0:01:31]} 18... Bf5 {[%clk 0:01:14]} 19. Rb5 {[%clk 0:01:31.3]} 19... h6
{[%clk 0:01:08.4]} 20. Ra5 {[%clk 0:01:25.7]} 20... Qc3 {[%clk 0:00:51.1]} 21.
Qxc3 {[%clk 0:01:25.2]} 21... Rxc3 {[%clk 0:00:52]} 22. Nf3 {[%clk 0:01:24.5]}
22... Rd7 {[%clk 0:00:49.6]} 23. h4 {[%clk 0:01:20.5]} 23... Nxe3 {[%clk
0:00:40]} 24. fxe3 {[%clk 0:01:19.9]} 24... Rxe3 {[%clk 0:00:40.9]} 25. Kf2
{[%clk 0:01:16.4]} 25... Rb3 {[%clk 0:00:33.9]} 26. Be5 {[%clk 0:01:16.4]} 26...
Be4 {[%clk 0:00:28.9]} 27. Bxg7 {[%clk 0:01:10.8]} 27... Kxg7 {[%clk 0:00:29.8]}
28. Rd1 {[%clk 0:01:10.1]} 28... Rc7 {[%clk 0:00:27.3]} 29. Rd2 {[%clk
0:01:09.1]} 29... f6 {[%clk 0:00:26.2]} 30. Ne1 {[%clk 0:01:05.7]} 30... g5
{[%clk 0:00:25.2]} 31. Bf3 {[%clk 0:01:04.3]} 31... Bb1 {[%clk 0:00:21.7]} 32.
h5 {[%clk 0:01:00.5]} 32... f5 {[%clk 0:00:22.3]} 33. Be2 {[%clk 0:00:51]} 33...
Be4 {[%clk 0:00:20.4]} 34. Bd3 {[%clk 0:00:51.2]} 34... Rcc3 {[%clk 0:00:17.9]}
35. Bxe4 {[%clk 0:00:50.8]} 35... fxe4 {[%clk 0:00:18.8]} 36. Re2 {[%clk
0:00:51.3]} 36... e3+ {[%clk 0:00:18.3]} 37. Kf3 {[%clk 0:00:51.6]} 37... Kf6
{[%clk 0:00:12.9]} 38. Re5 {[%clk 0:00:43.6]} 38... Rc4 {[%clk 0:00:07.2]} 39.
Nc2 {[%clk 0:00:41]} 39... Rbc3 {[%clk 0:00:06.9]} 40. Nxe3 {[%clk 0:00:35.9]}
40... Rxd4 {[%clk 0:00:07]} 41. Rf5+ {[%clk 0:00:35.9]} 41... Ke6 {[%clk
0:00:07.1]} 42. Ra5 {[%clk 0:00:36.2]} 42... Rf4+ {[%clk 0:00:06.9]} 43. Kg3
{[%clk 0:00:36.4]} 43... Kf7 {[%clk 0:00:05.3]} 44. Kh2 {[%clk 0:00:23.4]} 44...
Rh4+ {[%clk 0:00:05.2]} 45. Kg1 {[%clk 0:00:23.6]} 45... Rc1+ {[%clk 0:00:05.4]}
46. Kf2 {[%clk 0:00:22.2]} 46... Rf4+ {[%clk 0:00:04.9]} 47. Kg3 {[%clk
0:00:22.7]} 47... Rc3 {[%clk 0:00:05.7]} 48. Kh2 {[%clk 0:00:22]} 48... Rh4+
{[%clk 0:00:05.9]} 49. Kg1 {[%clk 0:00:22.6]} 49... Rc1+ {[%clk 0:00:06.7]} 50.
Nf1 {[%clk 0:00:23.2]} 50... Rf4 {[%clk 0:00:04.8]} 51. Rf2 {[%clk 0:00:23.1]}
51... Rxf2 {[%clk 0:00:05.6]} 52. Kxf2 {[%clk 0:00:24]} 52... Rc2+ {[%clk
0:00:04.9]} 53. Kf3 {[%clk 0:00:24.2]} 53... Rc7 {[%clk 0:00:04.4]} 54. Ne3
{[%clk 0:00:24.6]} 54... e6 {[%clk 0:00:03.3]} 55. Ng4 {[%clk 0:00:24.6]} 55...
Rc3+ {[%clk 0:00:03.5]} 56. Kf2 {[%clk 0:00:25.2]} 56... Rc2+ {[%clk 0:00:03.9]}
57. Kg3 {[%clk 0:00:25.9]} 57... Rc3+ {[%clk 0:00:04.3]} 58. Kh2 {[%clk
0:00:26.7]} 58... Rc7 {[%clk 0:00:04.7]} 59. Nxh6+ {[%clk 0:00:26.7]} 59... Kf6
{[%clk 0:00:04.6]} 60. Ng4+ {[%clk 0:00:27.6]} 60... Kg7 {[%clk 0:00:05.2]} 61.
Kh3 {[%clk 0:00:28]} 61... Rc3+ {[%clk 0:00:05.3]} 62. g3 {[%clk 0:00:28.3]}
62... Rc7 {[%clk 0:00:06.2]} 63. Ra6 {[%clk 0:00:28.2]} 63... Kf7 {[%clk
0:00:06.3]} 64. Nf2 {[%clk 0:00:27.3]} 64... Kf6 {[%clk 0:00:07.2]} 65. Ne4+
{[%clk 0:00:27.4]} 65... Kf5 {[%clk 0:00:08]} 66. Nd6+ {[%clk 0:00:27.6]} 66...
Ke5 {[%clk 0:00:08.5]} 67. Nb5 {[%clk 0:00:26]} 67... Rb7 {[%clk 0:00:08.4]} 68.
Nxa7 {[%clk 0:00:26]} 68... Kd5 {[%clk 0:00:07.7]} 69. Nc6 {[%clk 0:00:24.8]}
69... e5 {[%clk 0:00:08.2]} 70. Nd8 {[%clk 0:00:20.6]} 70... Rd7 {[%clk
0:00:08.1]} 71. Ne6 {[%clk 0:00:17]} 71... e4 {[%clk 0:00:07.8]} 72. Nxg5 {[%clk
0:00:16.8]} 72... e3 {[%clk 0:00:08.4]} 73. Re6 {[%clk 0:00:15]} 73... Rg7
{[%clk 0:00:06.7]} 74. Rxe3 {[%clk 0:00:15.2]} 74... Rxg5 {[%clk 0:00:07.4]} 75.
g4 {[%clk 0:00:15.7]} 75... Kd4 {[%clk 0:00:07.7]} 76. Re1 {[%clk 0:00:16.1]}
76... Kd5 {[%clk 0:00:07.9]} 77. Kh4 {[%clk 0:00:16.6]} 77... Rg8 {[%clk
0:00:08.6]} 78. h6 {[%clk 0:00:17]} 78... Kd6 {[%clk 0:00:09.5]} 79. g5 {[%clk
0:00:17.5]} 79... Kd7 {[%clk 0:00:09.7]} 80. Kh5 {[%clk 0:00:18]} 1-0

[Event "Early-Titled-Tuesday-Blitz-March-12-2024"]
[Site "Chess.com"]
[Date "2024.03.12"]
[Round "6"]
[White "Blitzstream"]
[Black "Let_it_be_1"]
[Result "1/2-1/2"]
[WhiteElo "2800"]
[BlackElo "2624"]
[TimeControl "180+1"]
[EndTime "9:07:13 PDT"]
[Termination "Game drawn by repetition"]

1. e4 {[%clk 0:03:00.9]} 1... e6 {[%clk 0:03:00.1]} 2. d4 {[%clk 0:02:59.3]}
2... d5 {[%clk 0:03:00.5]} 3. Nd2 {[%clk 0:02:59.8]} 3... Nf6 {[%clk 0:03:00.4]}
4. e5 {[%clk 0:03:00.1]} 4... Nfd7 {[%clk 0:03:00.7]} 5. c3 {[%clk 0:03:01]}
5... c5 {[%clk 0:03:01]} 6. Ngf3 {[%clk 0:03:01.6]} 6... Nc6 {[%clk 0:03:01.2]}
7. Bd3 {[%clk 0:03:02]} 7... f6 {[%clk 0:03:01.8]} 8. exf6 {[%clk 0:03:01.3]}
8... Nxf6 {[%clk 0:03:02.7]} 9. O-O {[%clk 0:03:01.9]} 9... Bd6 {[%clk
0:03:02.7]} 10. Re1 {[%clk 0:03:02.6]} 10... O-O {[%clk 0:03:02]} 11. Nf1 {[%clk
0:03:03.2]} 11... Qc7 {[%clk 0:03:01.6]} 12. Bg5 {[%clk 0:03:02.4]} 12... e5
{[%clk 0:02:59]} 13. dxe5 {[%clk 0:02:59.8]} 13... Nxe5 {[%clk 0:02:59.3]} 14.
Nxe5 {[%clk 0:02:58.7]} 14... Bxe5 {[%clk 0:02:59.7]} 15. Bh4 {[%clk 0:02:57.6]}
15... Bd7 {[%clk 0:02:51.6]} 16. Bg3 {[%clk 0:02:51.9]} 16... Rae8 {[%clk
0:02:50]} 17. Qc2 {[%clk 0:02:43.7]} 17... c4 {[%clk 0:02:27.5]} 18. Bf5 {[%clk
0:02:43.6]} 18... Bxf5 {[%clk 0:02:10.7]} 19. Qxf5 {[%clk 0:02:43.4]} 19... Ne4
{[%clk 0:02:07.6]} 20. Qh5 {[%clk 0:02:43.2]} 20... Bxg3 {[%clk 0:01:47.1]} 21.
hxg3 {[%clk 0:02:41]} 21... g6 {[%clk 0:01:42.2]} 22. Qxd5+ {[%clk 0:02:40.4]}
22... Qf7 {[%clk 0:01:40.6]} 23. Qxf7+ {[%clk 0:02:38.6]} 23... Kxf7 {[%clk
0:01:38.5]} 24. f3 {[%clk 0:02:30.4]} 24... Nc5 {[%clk 0:01:36.3]} 25. Nd2
{[%clk 0:02:22.1]} 25... b5 {[%clk 0:01:30.7]} 26. b3 {[%clk 0:02:22.4]} 26...
Rd8 {[%clk 0:01:20.7]} 27. Red1 {[%clk 0:01:37.1]} 27... Rd3 {[%clk 0:01:11.8]}
28. Ne4 {[%clk 0:01:17]} 28... Nxe4 {[%clk 0:00:54.5]} 29. fxe4 {[%clk
0:01:08.2]} 29... Rxc3 {[%clk 0:00:48.9]} 30. Rd7+ {[%clk 0:00:51.9]} 30... Ke6
{[%clk 0:00:48.9]} 31. Rxa7 {[%clk 0:00:52]} 31... cxb3 {[%clk 0:00:41.7]} 32.
axb3 {[%clk 0:00:51.6]} 32... Rxb3 {[%clk 0:00:42.1]} 33. Rxh7 {[%clk
0:00:38.4]} 33... Rb2 {[%clk 0:00:32.3]} 34. Kh2 {[%clk 0:00:20.1]} 34... Ke5
{[%clk 0:00:29.1]} 35. Re7+ {[%clk 0:00:18.6]} 35... Kd4 {[%clk 0:00:29.3]} 36.
e5 {[%clk 0:00:17]} 36... Rff2 {[%clk 0:00:19.8]} 37. e6 {[%clk 0:00:16.6]}
37... Rxg2+ {[%clk 0:00:19.3]} 38. Kh3 {[%clk 0:00:17]} 38... Ke5 {[%clk
0:00:18]} 39. Re8 {[%clk 0:00:14.7]} 39... Rbe2 {[%clk 0:00:15.1]} 40. e7 {[%clk
0:00:14.5]} 40... Kf5 {[%clk 0:00:12.6]} 41. Rf1+ {[%clk 0:00:13]} 41... Kg5
{[%clk 0:00:12.4]} 42. Rh1 {[%clk 0:00:11.4]} 42... Rgf2 {[%clk 0:00:11.1]} 43.
Rb8 {[%clk 0:00:07]} 43... Rxe7 {[%clk 0:00:09.8]} 44. Rxb5+ {[%clk 0:00:07.3]}
44... Rf5 {[%clk 0:00:10.6]} 45. Rb4 {[%clk 0:00:06.1]} 45... Rh7+ {[%clk
0:00:10.1]} 46. Rh4 {[%clk 0:00:06.3]} 46... Rxh4+ {[%clk 0:00:09.6]} 47. gxh4+
{[%clk 0:00:07.2]} 47... Kh5 {[%clk 0:00:10.2]} 48. Kg3 {[%clk 0:00:07.3]} 48...
Rb5 {[%clk 0:00:10.9]} 49. Rf1 {[%clk 0:00:06.5]} 49... Rb3+ {[%clk 0:00:11]}
50. Kg2 {[%clk 0:00:07.1]} 50... Kxh4 {[%clk 0:00:11]} 51. Kg1 {[%clk
0:00:07.7]} 51... Kg3 {[%clk 0:00:10.4]} 52. Kh1 {[%clk 0:00:07.4]} 52... g5
{[%clk 0:00:08.7]} 53. Kg1 {[%clk 0:00:07.3]} 53... g4 {[%clk 0:00:08.5]} 54.
Ra1 {[%clk 0:00:07.3]} 54... Rf3 {[%clk 0:00:08]} 55. Kh1 {[%clk 0:00:07.4]}
55... Kh3 {[%clk 0:00:08]} 56. Kg1 {[%clk 0:00:07.9]} 56... Kg3 {[%clk
0:00:07.5]} 57. Kh1 {[%clk 0:00:08.3]} 57... Rc3 {[%clk 0:00:08.1]} 58. Kg1
{[%clk 0:00:08.7]} 58... Kh3 {[%clk 0:00:07.7]} 59. Kh1 {[%clk 0:00:09]} 59...
Rc2 {[%clk 0:00:08.1]} 60. Kg1 {[%clk 0:00:09.3]} 60... g3 {[%clk 0:00:08]} 61.
Kh1 {[%clk 0:00:09.1]} 61... Rh2+ {[%clk 0:00:07.9]} 62. Kg1 {[%clk 0:00:09.6]}
62... Rg2+ {[%clk 0:00:08.1]} 63. Kh1 {[%clk 0:00:10]} 63... Rf2 {[%clk
0:00:08.3]} 64. Kg1 {[%clk 0:00:10.4]} 64... Rd2 {[%clk 0:00:08.3]} 65. Kh1
{[%clk 0:00:10.7]} 65... Re2 {[%clk 0:00:08.1]} 66. Kg1 {[%clk 0:00:11.1]} 66...
Rf2 {[%clk 0:00:08]} 67. Kh1 {[%clk 0:00:11.6]} 67... Rf4 {[%clk 0:00:07.9]} 68.
Kg1 {[%clk 0:00:11.8]} 68... Kg4 {[%clk 0:00:08.1]} 69. Rb1 {[%clk 0:00:11.7]}
69... Re4 {[%clk 0:00:07.8]} 70. Ra1 {[%clk 0:00:12.1]} 70... Kf3 {[%clk
0:00:06.1]} 71. Ra3+ {[%clk 0:00:12.2]} 71... Re3 {[%clk 0:00:06.6]} 72. Ra1
{[%clk 0:00:10.6]} 72... Re2 {[%clk 0:00:06.1]} 73. Ra3+ {[%clk 0:00:10.6]}
73... Re3 {[%clk 0:00:06.6]} 74. Ra1 {[%clk 0:00:10.9]} 74... Re2 {[%clk
0:00:06.8]} 75. Ra3+ {[%clk 0:00:10.7]} 75... Re3 {[%clk 0:00:07.2]} 1/2-1/2